fUSD/lending_fUSD_20250926
["ID","MTS","AMOUNT","RATE_DAILY","PERIOD"]
[387845526,1758923434994,-228.47424369,0.00019927,2]
[387845527,1758923435003,-151.06090267,0.00019928,2]
[387845528,1758923435012,-233.41032444,0.00019929,2]
[387845529,1758923435022,-1425.0,0.00019931,2]
[387845530,1758923435032,-233.41032444,0.00019933,2]
[387845531,1758923435043,-1000.0,0.00019934,2]
[387845532,1758923435052,-217.52314418,0.00019934,2]
[387845533,1758923435062,-222.48764243,0.00019935,2]
[387845534,1758923435071,-1073.278,0.00019937,2]
[387845535,1758923435080,-222.48764243,0.00019946,2]
[387845536,1758923435090,-217.52314418,0.00019947,2]
[387845537,1758923435099,-233.41032444,0.00019949,2]
[387845538,1758923435109,-151.06090267,0.0001996,2]
[387845539,1758923435118,-203.33273099,0.00019961,2]
[387845540,1758923435128,-213.17524994,0.00019963,2]
[387845541,1758923435138,-156.31937031,0.00019965,2]
[387845542,1758923435147,-228.47424369,0.00019966,2]
[387845543,1758923435156,-228.47424369,0.00019966,2]
[387845544,1758923435166,-233.41032444,0.0001997,2]
[387845545,1758923435175,-213.17524994,0.00019973,2]
[387845546,1758923435185,-500.0,0.00019973,2]
[387845547,1758923435195,-178.69747453,0.00019975,2]
[387845548,1758923435204,-233.41032444,0.00019976,2]
[387845549,1758923435214,-150.0,0.00019981,2]
[387845550,1758923435223,-150.0,0.00019981,2]
[387845551,1758923435232,-150.0,0.00019981,2]
[387845552,1758923435242,-218.83348469,0.00019981,2]
[387845553,1758923435251,-150.0,0.00019981,2]
[387845554,1758923435261,-150.0,0.00019981,2]
[387845555,1758923435271,-264.02708365,0.00019981,2]
[387845556,1758923435280,-500.0,0.00019981,2]
[387845557,1758923435289,-150.0,0.00019981,2]
[387845558,1758923435299,-150.0,0.00019981,2]
[387845559,1758923435308,-500.0,0.00019981,2]
[387845560,1758923435318,-150.0,0.00019981,2]
[387845561,1758923435327,-150.0,0.00019981,2]
[387845562,1758923435337,-500.0,0.00019981,2]
[387845563,1758923435346,-500.0,0.00019981,2]
[387845564,1758923435355,-500.0,0.00019981,2]
[387845565,1758923435365,-500.0,0.00019981,2]
[387845566,1758923435374,-160.65615785,0.00019981,2]
[387845567,1758923435546,-151.06090267,0.00019983,2]
[387845568,1758923435557,-233.41032444,0.00019984,2]
[387845569,1758923435566,-180.92,0.00019986,2]
[387845570,1758923435575,-180.92,0.00019986,2]
[387845571,1758923435584,-203.33273099,0.00019989,2]
[387845572,1758923435594,-180.92,0.0001999,2]
[387845573,1758923435603,-180.92,0.0001999,2]
[387845574,1758923435612,-3101.3237484,0.0001999,2]
[387845575,1758923435622,-5000.0,0.00019996,2]
[387845576,1758923435631,-1453.065571,0.00019996,2]
[387845577,1758923435641,-146846.7708762,0.00019996,2]
[387845578,1758923435651,-3230.8307495,0.00019998,2]
[387845579,1758923435661,-5000.0,0.00019998,2]
[387845580,1758923435670,-300.0,0.00019999,2]
[387845581,1758923435680,-666.0,0.00019999,2]
[387845582,1758923435689,-300.0,0.00019999,2]
[387845583,1758923435699,-300.0,0.00019999,2]
[387845584,1758923435708,-1243.25642692,0.00019999,5]
[387845585,1758923435717,-5000.0,0.00019999,2]
[387845586,1758923435726,-150.0,0.00019999,2]
[387845587,1758923435736,-217.52314418,0.0002,2]
[387845588,1758923435745,-608.0,0.0002,2]
[387845589,1758923435754,-11694.31595454,0.0002,2]
[387845590,1758923435764,-95123.69585116,0.0002,2]
[387845591,1758923435790,-139741.20340102,0.0002,2]
[387845592,1758923435799,-499.99,0.0002,2]
[387845593,1758923435809,-500.0,0.0002,2]
[387845594,1758923435818,-12137.54289253,0.0002,2]
[387845595,1758923435829,-1617.56472934,0.0002,2]
[387845596,1758923435987,-18731.43186462,0.0002,2]
[387845597,1758923435998,-29663.06079108,0.0002,2]
[387845598,1758923436102,-1639.06640917,0.0002,2]
[387845599,1758923436244,-942.59944755,0.0002,2]
[387845704,1758923441454,-1446.82967868,0.0002,2]
[387845705,1758923441499,-813.09948562,0.0002,2]
[387845718,1758923443556,-540.43967541,0.0002,2]
[387845722,1758923443763,-581367.71832693,0.0002,2]
[387845723,1758923443817,-261289.77413365,0.0002,2]
[387845724,1758923443826,-2000.0,0.0002,2]
[387845725,1758923443836,-2000.0,0.0002,2]
[387845726,1758923443845,-315.11113,0.0002,2]
[387845727,1758923443855,-500.0,0.0002,2]
[387845728,1758923443864,-1000.0,0.0002,2]
[387845729,1758923443874,-1000.0,0.0002,2]
[387845730,1758923443883,-1000.0,0.0002,2]
[387845731,1758923443892,-1000.0,0.0002,2]
[387845732,1758923444141,-1000.0,0.0002,2]
[387845733,1758923444163,-1000.0,0.0002,2]
[387845734,1758923444173,-1000.0,0.0002,2]
[387845735,1758923444183,-1000.0,0.0002,2]
[387845736,1758923444192,-1000.0,0.0002,2]
[387845737,1758923444202,-1000.0,0.0002,2]
[387845738,1758923444211,-1000.0,0.0002,2]
[387845739,1758923444221,-1000.0,0.0002,2]
[387845740,1758923444230,-1000.0,0.0002,2]
[387845741,1758923444240,-1000.0,0.0002,2]
[387845742,1758923444249,-1000.0,0.0002,2]
[387845743,1758923444258,-1000.0,0.0002,2]
[387845744,1758923444267,-1000.0,0.0002,2]
[387845745,1758923444277,-1000.0,0.0002,2]
[387845746,1758923444286,-1000.0,0.0002,2]
[387845747,1758923444295,-927.89499032,0.0002,2]
[387845748,1758923444304,-500.0,0.0002,2]
[387845749,1758923444313,-35584.01628853,0.0002,2]
[387845750,1758923444352,-3017.63679634,0.0002,2]
[387845764,1758923447241,-570.87230756,0.0002,2]
[387845766,1758923447325,-616.15,0.0002,2]
[387845767,1758923447336,-14684.3026902,0.0002,2]
[387845768,1758923447416,-635.716992,0.0002,2]
[387845769,1758923447804,-5731.41317928,0.0002,2]
[387845770,1758923450342,-386.10357055,0.0002,2]
[387845771,1758923450354,-2259.2,0.0002,2]
[387845772,1758923450365,-25032.73251158,0.0002,2]
[387845773,1758923450376,-894.9260251,0.0002,2]
[387845774,1758923450412,-537.325,0.0002,2]
[387845783,1758923620185,154.654764,0.00018401,2]
[387845784,1758923620451,154.654764,0.00017909,2]
[387845785,1758923620685,154.654764,0.00017859,2]
[387845786,1758923620933,154.654764,0.00017856,2]
[387845787,1758923623627,150.648714,0.00018156,2]
[387845788,1758923625582,156.279046,0.00018156,2]
[387845806,1758924319082,150.0,0.00018,2]
[387845807,1758924319575,150.0,0.00018,2]
[387845808,1758924340243,150.0,0.00018,2]
[387845809,1758924364501,-150.0,0.00018614,7]
[387845810,1758924364527,-250.0,0.00018641,2]
[387845811,1758924364553,-300.0,0.00018644,2]
[387845812,1758924364581,-2500.0,0.00018644,2]
[387845813,1758924364606,-195.0,0.00018647,2]
[387845814,1758924364631,-2000.0,0.00018652,2]
[387845815,1758924364656,-300.0,0.00018653,2]
[387845816,1758924364680,-406.67737514,0.00018654,2]
[387845817,1758924364705,-2500.0,0.00018654,2]
[387845818,1758924364728,-2500.0,0.00018654,2]
[387845819,1758924364752,-1000.0,0.00018663,2]
[387845820,1758924364779,-195.0,0.00018666,2]
[387845821,1758924364807,-300.0,0.00018679,2]
[387845822,1758924364832,-169.6,0.00018695,2]
[387845823,1758924364856,-2233.72262486,0.00018836,2]
[387845824,1758924409218,-195.0,0.00018627,2]
[387845825,1758924409244,-1805.0,0.00018627,2]
[387845830,1758924458352,150.0,0.00018,2]
[387845831,1758924495332,1500.0,0.0001722,2]
[387845832,1758924499338,1500.0,0.00018316,2]
[387845843,1758924632316,-195.0,0.00018627,2]
[387845844,1758924632326,-819.51,0.00018705,2]
[387845845,1758924632335,-300.0,0.00018732,2]
[387845846,1758924632345,-28.91737514,0.00018836,2]
[387845847,1758924632354,-300.0,0.00018899,2]
[387845848,1758924632364,-201.93286099,0.00018999,2]
[387845849,1758924632373,-150.0,0.00019,2]
[387845850,1758924632382,-171.39667003,0.00019014,2]
[387845851,1758924632391,-2171.49,0.00019017,2]
[387845852,1758924632401,-171.39667003,0.00019068,2]
[387845853,1758924632411,-171.39667003,0.00019151,2]
[387845854,1758924632422,-150.99,0.00019151,2]
[387845855,1758924632439,-150.0,0.0001918,2]
[387845856,1758924632449,-171.39667003,0.00019233,2]
[387845857,1758924632459,-171.39667003,0.00019315,2]
[387845858,1758924632469,-165.41,0.00019348,2]
[387845859,1758924632479,-394.3735022,0.00019363,2]
[387845860,1758924632488,-171.39667003,0.0001937,2]
[387845861,1758924632498,-789.47335543,0.00019399,2]
[387845862,1758924632509,-400.0,0.000194,7]
[387845863,1758924632518,-1200.0,0.00019411,2]
[387845864,1758924632528,-1500.0,0.00019412,2]
[387845865,1758924632538,-171.39667003,0.00019452,2]
[387845866,1758924632547,-800.0,0.000195,7]
[387845867,1758924632556,-171.39667003,0.00019534,2]
[387845868,1758924632566,-168.43,0.00019551,2]
[387845869,1758924632576,-180.0,0.00019573,2]
[387845870,1758924632585,-1200.0,0.000196,7]
[387845872,1758924632595,-171.39667003,0.00019616,2]
[387845874,1758924632604,-347.0,0.00019663,2]
[387845876,1758924632613,-171.39667003,0.00019699,2]
[387845878,1758924632623,-6100.9901,0.000197,2]
[387845880,1758924632632,-277.7628,0.000197,2]
[387845882,1758924632641,-4040.8042,0.000197,2]
[387845884,1758924632651,-1000.0,0.000197,2]
[387845886,1758924632660,-1600.0,0.000197,7]
[387845888,1758924632669,-2159.85,0.00019726,2]
[387845890,1758924632679,-1000.0,0.00019753,2]
[387845892,1758924632688,-171.39667003,0.00019753,2]
[387845894,1758924632697,-1000.0,0.00019795,2]
[387845895,1758924632707,-583.03720219,0.000198,2]
[387845896,1758924632716,-899.0,0.000198,2]
[387845897,1758924632725,-1179.0,0.000198,2]
[387845898,1758924632734,-4232.0,0.000198,2]
[387845899,1758924632743,-2000.0,0.000198,7]
[387845900,1758924632753,-1000.0,0.000198,2]
[387845901,1758924632762,-2274.27215,0.000198,2]
[387845902,1758924632771,-15000.0,0.000198,2]
[387845903,1758924632781,-16301.6801327,0.00019823,2]
[387845904,1758924632794,-3265.56914858,0.00019823,2]
[387845906,1758924632804,-510.33490886,0.00019823,2]
[387845922,1758924632956,-11406.79894666,0.00019823,2]
[387845924,1758924632966,-171.39667003,0.00019836,2]
[387845926,1758924632975,-200.0,0.0001984,2]
[387845928,1758924632986,-2182.119,0.00019884,2]
[387845930,1758924632995,-5421.69006366,0.00019884,2]
[387845932,1758924633007,-13483.30993634,0.00019884,2]
[387845934,1758924633016,-4179.0,0.00019884,2]
[387845936,1758924633025,-3580.4549,0.00019896,2]
[387845938,1758924633036,-318.24246407,0.000199,2]
[387845940,1758924633046,-1694.57,0.000199,2]
[387845942,1758924633056,-198.3977148,0.000199,2]
[387845944,1758924633065,-5000.0,0.000199,2]
[387845946,1758924633075,-400.0,0.000199,7]
[387845948,1758924633085,-166.98013355,0.000199,2]
[387845950,1758924633095,-172.58000199,0.000199,2]
[387845952,1758924633104,-1000.0,0.000199,2]
[387845953,1758924633114,-196.41530172,0.000199,2]
[387845955,1758924633124,-180.91228347,0.000199,2]
[387845957,1758924633133,-161.57427705,0.000199,2]
[387845959,1758924633143,-901.0803524,0.000199,2]
[387845961,1758924633153,-24285.61688079,0.000199,2]
[387845963,1758924633163,-181.63794948,0.000199,2]
[387845965,1758924633173,-583.0372022,0.000199,2]
[387845967,1758924633182,-761.5867282,0.000199,2]
[387845969,1758924633192,-1425.0,0.00019929,2]
[387845971,1758924633201,-1057.28,0.00019939,2]
[387845973,1758924633211,-1000.0,0.00019943,2]
[387845975,1758924633220,-347.0,0.00019956,2]
[387845977,1758924633230,-2800.0,0.0001996,2]
[387845979,1758924633240,-150.0,0.00019965,2]
[387845981,1758924633250,-500.0,0.00019973,2]
[387845983,1758924633260,-500.0,0.00019981,2]
[387845985,1758924633269,-500.0,0.00019981,2]
[387845987,1758924633278,-150.0,0.00019981,2]
[387846010,1758924633485,-150.0,0.00019981,2]
[387846011,1758924633495,-500.0,0.00019981,2]
[387846012,1758924633507,-500.0,0.00019981,2]
[387846013,1758924633516,-150.0,0.00019981,2]
[387846014,1758924633525,-500.0,0.00019981,2]
[387846015,1758924633534,-150.0,0.00019981,2]
[387846016,1758924633544,-500.0,0.00019981,2]
[387846017,1758924633554,-443.0,0.00019981,2]
[387846018,1758924633564,-500.0,0.00019981,2]
[387846019,1758924633573,-150.0,0.00019981,2]
[387846020,1758924633583,-500.0,0.00019981,2]
[387846021,1758924633593,-150.0,0.00019981,2]
[387846022,1758924633603,-907.0,0.00019981,2]
[387846023,1758924633613,-500.0,0.00019981,2]
[387846024,1758924633624,-347.0,0.00019981,2]
[387846025,1758924633633,-160.65615785,0.00019986,2]
[387846026,1758924633643,-5000.0,0.00019996,2]
[387846027,1758924633652,-5000.0,0.00019998,2]
[387846028,1758924633662,-666.0,0.00019999,2]
[387846029,1758924633671,-5000.0,0.00019999,2]
[387846030,1758924633681,-150.0,0.00019999,2]
[387846031,1758924633691,-5847.15797727,0.0002,2]
[387846032,1758924633701,-289.59,0.0002,2]
[387846033,1758924633711,-4000.0,0.0002,4]
[387846034,1758924633721,-37327.71326818,0.0002,2]
[387846035,1758924633733,-20065.09591526,0.0002,2]
[387846036,1758924633745,-3430.45491353,0.0002,2]
[387846037,1758924633757,-1362.81325601,0.0002,2]
[387846038,1758924633769,-3906.75956983,0.0002,2]
[387846039,1758924633780,-705.92436294,0.0002,2]
[387846040,1758924637801,1000.0,0.0001448,2]
[387846146,1758924639687,-728.0,0.00019884,2]
[387846148,1758924639697,-1609.66,0.0002,2]
[387846153,1758924639730,-637.03260235,0.0002,2]
[387846323,1758924641491,-2982.61922181,0.0002,2]
[387846326,1758924641504,-3075.11306249,0.0002,2]
[387846344,1758924641684,-452.20582707,0.0002,2]
[387846347,1758924641697,-3779.62863851,0.0002,2]
[387846353,1758924641754,-690.94567573,0.0002,2]
[387846355,1758924641766,-4129.71441029,0.0002,2]
[387846358,1758924641778,-9478.22213047,0.0002,2]
[387846362,1758924641812,-104086.26828142,0.0002,2]
[387846364,1758924641822,-263673.19925348,0.0002,2]
[387846366,1758924641833,-334639.41174463,0.0002,2]
[387846376,1758924641920,-322116.7965425,0.0002,2]
[387846386,1758924642003,-382.34299983,0.0002,2]
[387846436,1758924642570,1000.0,0.0001585,2]
[387846615,1758924645500,-2815.95912712,0.0002,2]
[387846616,1758924645556,-1825.5000002,0.0002,2]
[387846634,1758924650513,-1000.0,0.0001859,2]
[387846635,1758924650522,-311.954,0.00019884,2]
[387846636,1758924650532,-399.13217678,0.0002,2]
[387846637,1758924650589,-639.53472169,0.0002,2]
[387846638,1758924650603,-266.17975015,0.0002,2]
[387846639,1758924650664,-10223.32261678,0.0002,2]
[387846642,1758924719295,500.0,0.00030136,120]
[387846643,1758924763045,152.55,9.573e-05,2]
[387846644,1758924763583,152.55,0.0001053,2]
[387846645,1758924763774,152.55,0.00011487,2]
[387846646,1758924764120,152.55,0.00012445,2]
[387846647,1758924764289,152.55,0.00013402,2]
[387846648,1758924764460,152.55,0.00014359,2]
[387846649,1758924764607,152.55,0.00015316,2]
[387846650,1758924765001,152.55,0.00016274,2]
[387846651,1758924765246,152.55,0.00017231,2]
[387846652,1758924765352,152.55,0.00018188,2]
[387846653,1758924789464,500.0,0.00030136,120]
[387846654,1758924789830,-221.84099764,0.00018557,2]
[387846655,1758924789883,512.3,0.00030136,120]
[387846656,1758924794941,-216.74505655,0.00018557,2]
[387846660,1758924798368,-207.45875155,0.00018557,2]
[387846661,1758924803969,-462.05263035,0.00018557,2]
[387846662,1758924808224,-260.10951164,0.00018557,2]
[387846663,1758924814032,-312.95682977,0.00018557,2]
[387846664,1758924820335,-291.66649901,0.00018557,2]
[387846665,1758924825263,-27.16972349,0.00018557,2]
[387846666,1758924825289,-173.08605461,0.00018557,2]
[387846667,1758924828130,-208.0442219,0.00018557,2]
[387846668,1758924830570,-171.0,0.00018557,2]
[387846669,1758924834226,-203.33350099,0.00018557,2]
[387846670,1758924835408,-203.33350099,0.00018557,2]
[387846671,1758924837755,-156.9543186,0.00018557,2]
[387846672,1758924839480,-291.96280335,0.00018557,2]
[387846673,1758924842004,-197.55987651,0.00018557,2]
[387846674,1758924846368,-300.0,0.00018556,2]
[387846675,1758924846392,-201.19011207,0.00018557,2]
[387846676,1758924848715,-174.31,0.00018557,2]
[387846677,1758924850699,-19.22561098,0.00018557,2]
[387846678,1758924850724,-212.05808625,0.00018557,2]
[387846679,1758924852293,-269.49129239,0.00018557,2]
[387846680,1758924855901,-317.72789985,0.00018557,2]
[387846681,1758924858392,-177.17847915,0.00018557,2]
[387846682,1758924861565,-163.20195054,0.00018557,2]
[387846683,1758924864456,-381.28369723,0.00018557,2]
[387846684,1758924866357,-288.54812668,0.00018557,2]
[387846685,1758924867748,-190.51046791,0.00018557,2]
[387846686,1758924867774,-110.42760413,0.00018557,2]
[387846687,1758924871425,-416.96228673,0.00018557,2]
[387846688,1758924873327,-406.13008961,0.00018556,2]
[387846689,1758924877524,-183.50748255,0.00018556,2]
[387846690,1758924877553,-115.19036715,0.00018556,2]
[387846691,1758924882063,-272.53950167,0.00018556,2]
[387846692,1758924884545,-112.27013118,0.00018556,2]
[387846693,1758924884575,-57.5003102,0.00018556,2]
[387846694,1758924888417,-261.2907343,0.00018556,2]
[387846695,1758924891167,-163.20356565,0.00018556,2]
[387846696,1758924891328,800.0,9.04e-05,2]
[387846697,1758924893905,-18.00538985,0.00018556,2]
[387846698,1758924893932,-213.18355992,0.00018556,2]
[387846699,1758924894941,800.0,0.0001178,2]
[387846700,1758924898338,-244.91905188,0.00018556,2]
[387846701,1758924898362,-38.78733946,0.00018557,2]
[387846702,1758924898586,800.0,0.0001452,2]
[387846703,1758924900022,-337.2572577,0.00018557,2]
[387846704,1758924901215,-159.19953127,0.00018557,2]
[387846705,1758924903051,800.0,0.0001726,2]
[387846706,1758924903120,-376.67229924,0.00018556,2]
[387846707,1758924907563,-319.33718055,0.00018556,2]
[387846708,1758924910310,-316.36231679,0.00018556,2]
[387846709,1758924912956,-154.43,0.00018556,2]
[387846710,1758924919149,-33.19820342,0.00018556,2]
[387846711,1758924919175,-126.96543336,0.00018557,2]
[387846712,1758924921028,-309.2600336,0.00018557,2]
[387846713,1758924923727,-202.64670903,0.00018557,2]
[387846714,1758924926069,-203.95920506,0.00018557,2]
[387846715,1758924929837,-342.45823702,0.00018556,2]
[387846716,1758924929862,-64.03078648,0.00018557,2]
[387846717,1758924933219,-30.50381318,0.00018557,2]
[387846718,1758924933245,-225.07615571,0.00018557,2]
[387846720,1758924935927,-215.37232464,0.00018557,2]
[387846722,1758924940072,-175.04858872,0.00018557,2]
[387846723,1758924943647,-308.68142462,0.00018557,2]
[387846724,1758924946377,-236.34455125,0.00018557,2]
[387846725,1758924950611,-190.18034559,0.00018556,2]
[387846726,1758924951845,-48.13056777,0.00018556,2]
[387846727,1758924951869,-106.23335491,0.00018557,2]
[387846728,1758924953536,-484.58778584,0.00018557,2]
[387846729,1758924955698,-182.45277338,0.00018557,2]
[387846730,1758924958168,-66.20304093,0.00018557,2]
[387846731,1758924958194,-85.79695907,0.00018557,2]
[387846732,1758924961794,-319.47416352,0.00018557,2]
[387846733,1758924964698,-342.40194526,0.00018557,2]
[387846734,1758924965948,-236.34455125,0.00018556,2]
[387846735,1758924965974,-35.9762283,0.00018557,2]
[387846740,1758924969889,-288.35272526,0.00018557,2]
[387846741,1758924975201,-279.05569279,0.00018557,2]
[387846742,1758924979456,-235.62021938,0.00018557,2]
[387846743,1758924982634,-350.3988737,0.00018557,2]
[387846744,1758924987812,-62.92319272,0.00018557,2]
[387846745,1758924993286,-177.255227,0.00018556,2]
[387846746,1758925022482,1100.0,0.0001452,2]
[387846747,1758925024900,152.0,0.00018557,2]
[387846748,1758925026268,1100.0,0.0001589,2]
[387846749,1758925029281,1100.0,0.0001726,2]
[387846750,1758925029333,250.0,0.00015972,2]
[387846752,1758925030722,-152.0,0.00018557,2]
[387846753,1758925031711,300.0,0.00017479,2]
[387846754,1758925032738,300.0,0.00017479,2]
[387846755,1758925033109,1100.0,0.00018356,2]
[387846756,1758925033224,1679.02913498,0.00017479,2]
[387846757,1758925033506,-261.63996509,0.00018557,2]
[387846758,1758925038217,-280.76471701,0.00018557,2]
[387846760,1758925062457,2600.0,0.00016712,2]
[387846761,1758925065649,2600.0,0.00017808,2]
[387846762,1758925096289,-165.25277173,0.00018546,2]
[387846763,1758925099265,-224.89857417,0.00018546,2]
[387846764,1758925101481,-211.80381911,0.00018546,2]
[387846765,1758925104456,-174.23904273,0.00018546,2]
[387846766,1758925108778,-253.77346465,0.00018546,2]
[387846767,1758925112952,-73.52647361,0.00018546,2]
[387846768,1758925141115,500.0,9.04e-05,2]
[387846769,1758925146481,500.0,0.0001178,2]
[387846774,1758925150993,500.0,0.0001452,2]
[387846777,1758925154012,500.0,0.0001726,2]
[387846778,1758925204226,288.10284315,0.00016438,2]
[387846779,1758925228157,500.0,0.00030136,120]
[387846780,1758925228421,500.0,0.00030136,120]
[387846781,1758925229214,500.0,0.00030136,120]
[387846782,1758925229393,400.0,0.00030136,120]
[387846784,1758925286208,500.0,0.00030136,120]
[387846785,1758925286755,500.0,0.00030136,120]
[387846786,1758925286995,500.0,0.00030136,120]
[387846787,1758925287618,500.0,0.00030136,120]
[387846788,1758925288033,500.0,0.00030136,120]
[387846789,1758925289008,500.0,0.00030136,120]
[387846790,1758925289247,500.0,0.00030136,120]
[387846791,1758925289514,500.0,0.00030136,120]
[387846792,1758925289973,500.0,0.00030136,120]
[387846793,1758925290227,500.0,0.00030136,120]
[387846794,1758925290483,500.0,0.00030136,120]
[387846797,1758925342031,168.0,0.00018396,2]
[387846798,1758925384850,400.0,0.00030136,120]
[387846799,1758925397511,500.0,0.00016712,2]
[387846800,1758925397918,-150.0,0.00018548,7]
[387846801,1758925404640,500.0,0.00030136,120]
[387846802,1758925405610,723.51,0.00018498,2]
[387846803,1758925409114,-500.0,0.00018577,2]
[387846804,1758925409139,-89.14143036,0.00018577,2]
[387846805,1758925413117,500.0,0.00030136,120]
[387846806,1758925413285,500.0,0.00030136,120]
[387846807,1758925413447,291.59195459,0.00030136,120]
[387846808,1758925416374,-182.62377824,0.00018577,2]
[387846809,1758925420744,-64.75641382,0.00018577,2]
[387846810,1758925420768,-194.58,0.00018577,2]
[387846811,1758925420794,-195.0,0.00018578,2]
[387846812,1758925420818,-76.15528589,0.00018578,2]
[387846813,1758925422660,-421.50647856,0.00018578,2]
[387846814,1758925431754,-274.97132438,0.00018578,2]
[387846815,1758925440429,-178.98760297,0.00018577,2]
[387846816,1758925448059,-159.50905899,0.00018577,2]
[387846817,1758925449846,500.0,0.00030136,120]
[387846818,1758925450402,500.0,0.00030136,120]
[387846819,1758925450910,1179.11,0.0001852,2]
[387846820,1758925451017,500.0,0.00030136,120]
[387846821,1758925451520,500.0,0.00030136,120]
[387846822,1758925452709,500.0,0.00030136,120]
[387846823,1758925452896,500.0,0.00030136,120]
[387846824,1758925453143,-52.51811689,0.00018577,2]
[387846825,1758925453170,-298.95154941,0.00018578,2]
[387846826,1758925458475,-370.94821028,0.00018578,2]
[387846827,1758925481975,-260.46829116,0.00018578,2]
[387846828,1758925487146,500.0,0.00030136,120]
[387846830,1758925489962,-182.62377824,0.00018578,2]
[387846833,1758925492125,-182.62377824,0.0001856,2]
[387846836,1758925499762,500.0,0.00030136,120]
[387846837,1758925499854,-197.06022695,0.0001856,2]
[387846838,1758925500106,500.0,0.00030136,120]
[387846839,1758925500545,500.0,0.00030136,120]
[387846840,1758925500793,500.0,0.00030136,120]
[387846841,1758925501056,500.0,0.00030136,120]
[387846842,1758925501174,500.0,0.00030136,120]
[387846843,1758925501314,500.0,0.00030136,120]
[387846844,1758925501492,500.0,0.00030136,120]
[387846845,1758925501900,573.84618522,0.00030136,120]
[387846846,1758925502170,-185.27490743,0.0001856,2]
[387846847,1758925507311,-263.11942035,0.0001856,2]
[387846848,1758925513791,-234.95819112,0.00018559,2]
[387846849,1758925513913,500.0,0.00030136,120]
[387846850,1758925514104,500.0,0.00030136,120]
[387846851,1758925514292,500.0,0.00030136,120]
[387846852,1758925514487,500.0,0.00030136,120]
[387846853,1758925514723,500.0,0.00030136,120]
[387846854,1758925514874,500.0,0.00030136,120]
[387846855,1758925515769,-65.04180888,0.00018559,2]
[387846856,1758925515798,-189.88959716,0.0001856,2]
[387846857,1758925518474,150.0,0.000179,2]
[387846858,1758925522324,-228.77203225,0.0001856,2]
[387846859,1758925525173,150.0,0.00018,2]
[387846860,1758925525248,150.0,0.00018,2]
[387846861,1758925525452,150.0,0.00018,2]
[387846862,1758925526078,-271.67384113,0.0001856,2]
[387846864,1758925529406,-211.5824413,0.0001856,2]
[387846865,1758925529892,176.04462769,0.00018,2]
[387846866,1758925531427,500.0,0.00030136,120]
[387846867,1758925531639,500.0,0.00030136,120]
[387846869,1758925533079,150.0,0.00018,2]
[387846870,1758925533577,150.0,0.00018,2]
[387846871,1758925535537,-305.41440239,0.0001856,2]
[387846872,1758925536992,150.0,0.00018,2]
[387846873,1758925537128,199.01425351,0.00018,2]
[387846874,1758925539688,-423.1565606,0.0001856,2]
[387846875,1758925540716,152.02866246,0.00018,2]
[387846876,1758925542572,-211.5741193,0.0001856,2]
[387846877,1758925545076,150.0,0.00018,2]
[387846878,1758925546556,150.00000001,0.00018,2]
[387846879,1758925546628,150.0,0.00018,2]
[387846880,1758925549107,-187.58130395,0.0001856,2]
[387846881,1758925561649,-152.14519733,0.0001856,2]
[387846882,1758925566762,-380.31488622,0.0001856,2]
[387846883,1758925572044,-228.16968889,0.0001856,2]